Workbook

Sheet Лист1
A1: ПРИМЕР 1 | F1: З11 | G1: З12 | H1: З13 | I1: З14 | J1: З21 | K1: З22 | L1: З23 | M1: З24 | N1: З25 | O1: З31 | P1: З32 | Q1: З33 | R1: Ж11 | S1: Ж12 | T1: Ж13 | U1: Ж14 | V1: Ж15 | W1: Ж16 | X1: Ж2 | Y1: П11 | Z1: П12 | AA1: П13 | AB1: П14 | AC1: П2 | AD1: П31 | AE1: П32 | AF1: П33 | AG1: П34 | AP1: З11 | AQ1: З12 | AR1: З13 | AS1: З14 | AT1: З21 | AU1: З22 | AV1: З23 | AW1: З24 | AX1: З25 | AY1: З31 | AZ1: З32 | BA1: З33 | BB1: Ж11 | BC1: Ж12 | BD1: Ж13 | BE1: Ж14 | BF1: Ж15 | BG1: Ж16 | BH1: Ж2 | BI1: П11 | BJ1: П12 | BK1: П13 | BL1: П14 | BM1: П2 | BN1: П31 | BO1: П32 | BP1: П33 | BQ1: П34 | BW1: З11 | BX1: З12 | BY1: З13 | BZ1: З14 | CA1: З21 | CB1: З22 | CC1: З23 | CD1: З24 | CE1: З25 | CF1: З31 | CG1: З32 | CH1: З33 | CI1: Ж11 | CJ1: Ж12 | CK1: Ж13 | CL1: Ж14 | CM1: Ж15 | CN1: Ж16 | CO1: Ж2 | CP1: П11 | CQ1: П12 | CR1: П13 | CS1: П14 | CT1: П2 | CU1: П31 | CV1: П32 | CW1: П33 | CX1: П34
A2: НАИМЕНОВАНИЕ ВОПРОСА | B2: =SUM(C2:C15) -> 272 | C2: =SUM(F2:AG5) -> 272 | D2: гурппа1 | E2: =SUM(F2:AG2) -> 0 | F2: 0 | G2: 0 | H2: 0 | I2: 0 | J2: 0 | K2: 0 | L2: 0 | M2: 0 | N2: 0 | O2: 0 | P2: 0 | Q2: 0 | R2: 0 | S2: 0 | T2: 0 | U2: 0 | V2: 0 | W2: 0 | X2: 0 | Y2: 0 | Z2: 0 | AA2: 0 | AB2: 0 | AC2: 0 | AD2: 0 | AE2: 0 | AF2: 0 | AG2: 0 | AI2: РФ | AJ2: =AK2-AL2 -> 0.001 | AK2: =ROUND(C2/$B2*100,3) -> 100 | AL2: =SUM(AO2:AO5) -> 99.999 | AM2: =IF(AO2>0,1,0) -> 0 | AN2: =D2 -> гурппа1 | AO2: =SUM(AP2:BQ2) -> 0 | AP2: =ROUND(F2/$B2*100,3) -> 0 | AQ2: 0 | AR2: 0 | AS2: 0 | AT2: 0 | AU2: 0 | AV2: 0 | AW2: 0 | AX2: 0 | AY2: 0 | AZ2: 0 | BA2: 0 | BB2: 0 | BC2: 0 | BD2: 0 | BE2: 0 | BF2: 0 | BG2: 0 | BH2: 0 | BI2: 0 | BJ2: 0 | BK2: 0 | BL2: 0 | BM2: 0 | BN2: 0 | BO2: 0 | BP2: 0 | BQ2: 0 | BT2: ="("&SUM(B2)&") ["&FIXED(SUM(AL2:AL15),3)&"]" -> (272) [99,999] | BU2: ="("&SUM(E2:E5)&") ["&FIXED(SUM(AO2:AO5),3)&"]" -> (272) [99,999] | BV2: ="("&SUM(E2)&") ["&FIXED(SUM(AO2),3)&"]" -> (0) [0,000] | BW2: (0) [0,000] | BX2: (0) [0,000] | BY2: (0) [0,000] | BZ2: (0) [0,000] | CA2: (0) [0,000] | CB2: (0) [0,000] | CC2: (0) [0,000] | CD2: (0) [0,000] | CE2: (0) [0,000] | CF2: (0) [0,000] | CG2: (0) [0,000] | CH2: (0) [0,000] | CI2: (0) [0,000] | CJ2: (0) [0,000] | CK2: (0) [0,000] | CL2: (0) [0,000] | CM2: (0) [0,000] | CN2: (0) [0,000] | CO2: (0) [0,000] | CP2: (0) [0,000] | CQ2: (0) [0,000] | CR2: (0) [0,000] | CS2: (0) [0,000] | CT2: (0) [0,000] | CU2: (0) [0,000] | CV2: (0) [0,000] | CW2: (0) [0,000] | CX2: (0) [0,000]
D3: гурппа2 | E3: =SUM(F3:AG3) -> 50 | F3: 2 | G3: 0 | H3: 0 | I3: 0 | J3: 8 | K3: 1 | L3: 30 | M3: 0 | N3: 2 | O3: 6 | P3: 0 | Q3: 0 | R3: 0 | S3: 0 | T3: 0 | U3: 0 | V3: 0 | W3: 0 | X3: 1 | Y3: 0 | Z3: 0 | AA3: 0 | AB3: 0 | AC3: 0 | AD3: 0 | AE3: 0 | AF3: 0 | AG3: 0 | AM3: =IF(AO3>0,1,0) -> 1 | AN3: гурппа2 | AO3: =SUM(AP3:BQ3) -> 18.382 | AP3: =ROUND(F3/$B2*100,3) -> 0.735 | AQ3: 0 | AR3: 0 | AS3: 0 | AT3: 2.941 | AU3: 0.368 | AV3: 11.029 | AW3: 0 | AX3: 0.735 | AY3: 2.206 | AZ3: 0 | BA3: 0 | BB3: 0 | BC3: 0 | BD3: 0 | BE3: 0 | BF3: 0 | BG3: 0 | BH3: 0.368 | BI3: 0 | BJ3: 0 | BK3: 0 | BL3: 0 | BM3: 0 | BN3: 0 | BO3: 0 | BP3: 0 | BQ3: 0 | BV3: ="("&SUM(E3)&") ["&FIXED(SUM(AO3),3)&"]" -> (50) [18,382] | BW3: ="("&SUM(F3)&") ["&FIXED(SUM(AP3),3)&"]" -> (2) [0,735] | BX3: ="("&SUM(G3)&") ["&FIXED(SUM(AQ3),3)&"]" -> (0) [0,000] | BY3: ="("&SUM(H3)&") ["&FIXED(SUM(AR3),3)&"]" -> (0) [0,000] | BZ3: ="("&SUM(I3)&") ["&FIXED(SUM(AS3),3)&"]" -> (0) [0,000] | CA3: ="("&SUM(J3)&") ["&FIXED(SUM(AT3),3)&"]" -> (8) [2,941] | CB3: ="("&SUM(K3)&") ["&FIXED(SUM(AU3),3)&"]" -> (1) [0,368] | CC3: ="("&SUM(L3)&") ["&FIXED(SUM(AV3),3)&"]" -> (30) [11,029] | CD3: ="("&SUM(M3)&") ["&FIXED(SUM(AW3),3)&"]" -> (0) [0,000] | CE3: ="("&SUM(N3)&") ["&FIXED(SUM(AX3),3)&"]" -> (2) [0,735] | CF3: ="("&SUM(O3)&") ["&FIXED(SUM(AY3),3)&"]" -> (6) [2,206] | CG3: ="("&SUM(P3)&") ["&FIXED(SUM(AZ3),3)&"]" -> (0) [0,000] | CH3: ="("&SUM(Q3)&") ["&FIXED(SUM(BA3),3)&"]" -> (0) [0,000] | CI3: ="("&SUM(R3)&") ["&FIXED(SUM(BB3),3)&"]" -> (0) [0,000] | CJ3: ="("&SUM(S3)&") ["&FIXED(SUM(BC3),3)&"]" -> (0) [0,000] | CK3: ="("&SUM(T3)&") ["&FIXED(SUM(BD3),3)&"]" -> (0) [0,000] | CL3: ="("&SUM(U3)&") ["&FIXED(SUM(BE3),3)&"]" -> (0) [0,000] | CM3: ="("&SUM(V3)&") ["&FIXED(SUM(BF3),3)&"]" -> (0) [0,000] | CN3: ="("&SUM(W3)&") ["&FIXED(SUM(BG3),3)&"]" -> (0) [0,000] | CO3: ="("&SUM(X3)&") ["&FIXED(SUM(BH3),3)&"]" -> (1) [0,368] | CP3: ="("&SUM(Y3)&") ["&FIXED(SUM(BI3),3)&"]" -> (0) [0,000] | CQ3: ="("&SUM(Z3)&") ["&FIXED(SUM(BJ3),3)&"]" -> (0) [0,000] | CR3: ="("&SUM(AA3)&") ["&FIXED(SUM(BK3),3)&"]" -> (0) [0,000] | CS3: ="("&SUM(AB3)&") ["&FIXED(SUM(BL3),3)&"]" -> (0) [0,000] | CT3: ="("&SUM(AC3)&") ["&FIXED(SUM(BM3),3)&"]" -> (0) [0,000] | CU3: ="("&SUM(AD3)&") ["&FIXED(SUM(BN3),3)&"]" -> (0) [0,000] | CV3: ="("&SUM(AE3)&") ["&FIXED(SUM(BO3),3)&"]" -> (0) [0,000] | CW3: ="("&SUM(AF3)&") ["&FIXED(SUM(BP3),3)&"]" -> (0) [0,000] | CX3: ="("&SUM(AG3)&") ["&FIXED(SUM(BQ3),3)&"]" -> (0) [0,000]
D4: гурппа3 | E4: 222 | F4: 61 | G4: 0 | H4: 0 | I4: 0 | J4: 1 | K4: 0 | L4: 122 | M4: 0 | N4: 0 | O4: 36 | P4: 0 | Q4: 2 | R4: 0 | S4: 0 | T4: 0 | U4: 0 | V4: 0 | W4: 0 | X4: 0 | Y4: 0 | Z4: 0 | AA4: 0 | AB4: 0 | AC4: 0 | AD4: 0 | AE4: 0 | AF4: 0 | AG4: 0 | AM4: 1 | AN4: гурппа3 | AO4: =SUM(AP4:BQ4) -> 81.617 | AP4: =ROUND(F4/$B2*100,3) -> 22.426 | AQ4: 0 | AR4: 0 | AS4: 0 | AT4: 0.368 | AU4: 0 | AV4: 44.853 | AW4: 0 | AX4: 0 | AY4: 13.235 | AZ4: 0 | BA4: 0.735 | BB4: 0 | BC4: 0 | BD4: 0 | BE4: 0 | BF4: 0 | BG4: 0 | BH4: 0 | BI4: 0 | BJ4: 0 | BK4: 0 | BL4: 0 | BM4: 0 | BN4: 0 | BO4: 0 | BP4: 0 | BQ4: 0 | BV4: (222) [81,617] | BW4: (61) [22,426] | BX4: (0) [0,000] | BY4: (0) [0,000] | BZ4: (0) [0,000] | CA4: (1) [0,368] | CB4: (0) [0,000] | CC4: (122) [44,853] | CD4: (0) [0,000] | CE4: (0) [0,000] | CF4: (36) [13,235] | CG4: (0) [0,000] | CH4: (2) [0,735] | CI4: (0) [0,000] | CJ4: (0) [0,000] | CK4: (0) [0,000] | CL4: (0) [0,000] | CM4: (0) [0,000] | CN4: (0) [0,000] | CO4: (0) [0,000] | CP4: (0) [0,000] | CQ4: (0) [0,000] | CR4: (0) [0,000] | CS4: (0) [0,000] | CT4: (0) [0,000] | CU4: (0) [0,000] | CV4: (0) [0,000] | CW4: (0) [0,000] | CX4: (0) [0,000]
D5: гурппа4 | E5: 0 | F5: 0 | G5: 0 | H5: 0 | I5: 0 | J5: 0 | K5: 0 | L5: 0 | M5: 0 | N5: 0 | O5: 0 | P5: 0 | Q5: 0 | R5: 0 | S5: 0 | T5: 0 | U5: 0 | V5: 0 | W5: 0 | X5: 0 | Y5: 0 | Z5: 0 | AA5: 0 | AB5: 0 | AC5: 0 | AD5: 0 | AE5: 0 | AF5: 0 | AG5: 0 | AM5: 0 | AN5: гурппа4 | AO5: 0 | AP5: =ROUND(F5/$B2*100,3) -> 0 | AQ5: 0 | AR5: 0 | AS5: 0 | AT5: 0 | AU5: 0 | AV5: 0 | AW5: 0 | AX5: 0 | AY5: 0 | AZ5: 0 | BA5: 0 | BB5: 0 | BC5: 0 | BD5: 0 | BE5: 0 | BF5: 0 | BG5: 0 | BH5: 0 | BI5: 0 | BJ5: 0 | BK5: 0 | BL5: 0 | BM5: 0 | BN5: 0 | BO5: 0 | BP5: 0 | BQ5: 0 | BV5: ="("&SUM(E5)&") ["&FIXED(SUM(AO5),3)&"]" -> (0) [0,000] | BW5: (0) [0,000] | BX5: (0) [0,000] | BY5: (0) [0,000] | BZ5: (0) [0,000] | CA5: (0) [0,000] | CB5: (0) [0,000] | CC5: (0) [0,000] | CD5: (0) [0,000] | CE5: (0) [0,000] | CF5: (0) [0,000] | CG5: (0) [0,000] | CH5: (0) [0,000] | CI5: (0) [0,000] | CJ5: (0) [0,000] | CK5: (0) [0,000] | CL5: (0) [0,000] | CM5: (0) [0,000] | CN5: (0) [0,000] | CO5: (0) [0,000] | CP5: (0) [0,000] | CQ5: (0) [0,000] | CR5: (0) [0,000] | CS5: (0) [0,000] | CT5: (0) [0,000] | CU5: (0) [0,000] | CV5: (0) [0,000] | CW5: (0) [0,000] | CX5: (0) [0,000]
C6: =SUM(F6:AG11) -> 0 | D6: гурппа1 | E6: 0 | F6: 0 | G6: 0 | H6: 0 | I6: 0 | J6: 0 | K6: 0 | L6: 0 | M6: 0 | N6: 0 | O6: 0 | P6: 0 | Q6: 0 | R6: 0 | S6: 0 | T6: 0 | U6: 0 | V6: 0 | W6: 0 | X6: 0 | Y6: 0 | Z6: 0 | AA6: 0 | AB6: 0 | AC6: 0 | AD6: 0 | AE6: 0 | AF6: 0 | AG6: 0 | AJ6: =AK6-AL6 -> 0 | AK6: =ROUND(C6/$B2*100,3) -> 0 | AL6: =SUM(AO6:AO11) -> 0 | AM6: =IF(AO6>0,1,0) -> 0 | AN6: гурппа1 | AO6: 0 | AP6: =ROUND(F6/$B2*100,3) -> 0 | AQ6: 0 | AR6: 0 | AS6: 0 | AT6: 0 | AU6: 0 | AV6: 0 | AW6: 0 | AX6: 0 | AY6: 0 | AZ6: 0 | BA6: 0 | BB6: 0 | BC6: 0 | BD6: 0 | BE6: 0 | BF6: 0 | BG6: 0 | BH6: 0 | BI6: 0 | BJ6: 0 | BK6: 0 | BL6: 0 | BM6: 0 | BN6: 0 | BO6: 0 | BP6: 0 | BQ6: 0 | BU6: ="("&SUM(C6)&") ["&FIXED(SUM(AO6:AO11),3)&"]" -> (0) [0,000] | BV6: ="("&SUM(E6)&") ["&FIXED(SUM(AO6),3)&"]" -> (0) [0,000] | BW6: (0) [0,000] | BX6: (0) [0,000] | BY6: (0) [0,000] | BZ6: (0) [0,000] | CA6: (0) [0,000] | CB6: (0) [0,000] | CC6: (0) [0,000] | CD6: (0) [0,000] | CE6: (0) [0,000] | CF6: (0) [0,000] | CG6: (0) [0,000] | CH6: (0) [0,000] | CI6: (0) [0,000] | CJ6: (0) [0,000] | CK6: (0) [0,000] | CL6: (0) [0,000] | CM6: (0) [0,000] | CN6: (0) [0,000] | CO6: (0) [0,000] | CP6: (0) [0,000] | CQ6: (0) [0,000] | CR6: (0) [0,000] | CS6: (0) [0,000] | CT6: (0) [0,000] | CU6: (0) [0,000] | CV6: (0) [0,000] | CW6: (0) [0,000] | CX6: (0) [0,000]
D7: гурппа2 | E7: 0 | F7: 0 | G7: 0 | H7: 0 | I7: 0 | J7: 0 | K7: 0 | L7: 0 | M7: 0 | N7: 0 | O7: 0 | P7: 0 | Q7: 0 | R7: 0 | S7: 0 | T7: 0 | U7: 0 | V7: 0 | W7: 0 | X7: 0 | Y7: 0 | Z7: 0 | AA7: 0 | AB7: 0 | AC7: 0 | AD7: 0 | AE7: 0 | AF7: 0 | AG7: 0 | AM7: =IF(AO7>0,1,0) -> 0 | AN7: гурппа2 | AO7: 0 | AP7: =ROUND(F7/$B2*100,3) -> 0 | AQ7: 0 | AR7: 0 | AS7: 0 | AT7: 0 | AU7: 0 | AV7: 0 | AW7: 0 | AX7: 0 | AY7: 0 | AZ7: 0 | BA7: 0 | BB7: 0 | BC7: 0 | BD7: 0 | BE7: 0 | BF7: 0 | BG7: 0 | BH7: 0 | BI7: 0 | BJ7: 0 | BK7: 0 | BL7: 0 | BM7: 0 | BN7: 0 | BO7: 0 | BP7: 0 | BQ7: 0 | BV7: (0) [0,000] | BW7: (0) [0,000] | BX7: (0) [0,000] | BY7: (0) [0,000] | BZ7: (0) [0,000] | CA7: (0) [0,000] | CB7: (0) [0,000] | CC7: (0) [0,000] | CD7: (0) [0,000] | CE7: (0) [0,000] | CF7: (0) [0,000] | CG7: (0) [0,000] | CH7: (0) [0,000] | CI7: (0) [0,000] | CJ7: (0) [0,000] | CK7: (0) [0,000] | CL7: (0) [0,000] | CM7: (0) [0,000] | CN7: (0) [0,000] | CO7: (0) [0,000] | CP7: (0) [0,000] | CQ7: (0) [0,000] | CR7: (0) [0,000] | CS7: (0) [0,000] | CT7: (0) [0,000] | CU7: (0) [0,000] | CV7: (0) [0,000] | CW7: (0) [0,000] | CX7: (0) [0,000]
D8: гурппа3 | E8: 0 | F8: 0 | G8: 0 | H8: 0 | I8: 0 | J8: 0 | K8: 0 | L8: 0 | M8: 0 | N8: 0 | O8: 0 | P8: 0 | Q8: 0 | R8: 0 | S8: 0 | T8: 0 | U8: 0 | V8: 0 | W8: 0 | X8: 0 | Y8: 0 | Z8: 0 | AA8: 0 | AB8: 0 | AC8: 0 | AD8: 0 | AE8: 0 | AF8: 0 | AG8: 0 | AM8: 0 | AN8: гурппа3 | AO8: 0 | AP8: =ROUND(F8/$B2*100,3) -> 0 | AQ8: 0 | AR8: 0 | AS8: 0 | AT8: 0 | AU8: 0 | AV8: 0 | AW8: 0 | AX8: 0 | AY8: 0 | AZ8: 0 | BA8: 0 | BB8: 0 | BC8: 0 | BD8: 0 | BE8: 0 | BF8: 0 | BG8: 0 | BH8: 0 | BI8: 0 | BJ8: 0 | BK8: 0 | BL8: 0 | BM8: 0 | BN8: 0 | BO8: 0 | BP8: 0 | BQ8: 0 | BV8: (0) [0,000] | BW8: (0) [0,000] | BX8: (0) [0,000] | BY8: (0) [0,000] | BZ8: (0) [0,000] | CA8: (0) [0,000] | CB8: (0) [0,000] | CC8: (0) [0,000] | CD8: (0) [0,000] | CE8: (0) [0,000] | CF8: (0) [0,000] | CG8: (0) [0,000] | CH8: (0) [0,000] | CI8: (0) [0,000] | CJ8: (0) [0,000] | CK8: (0) [0,000] | CL8: (0) [0,000] | CM8: (0) [0,000] | CN8: (0) [0,000] | CO8: (0) [0,000] | CP8: (0) [0,000] | CQ8: (0) [0,000] | CR8: (0) [0,000] | CS8: (0) [0,000] | CT8: (0) [0,000] | CU8: (0) [0,000] | CV8: (0) [0,000] | CW8: (0) [0,000] | CX8: (0) [0,000]
D9: гурппа4 | E9: 0 | F9: 0 | G9: 0 | H9: 0 | I9: 0 | J9: 0 | K9: 0 | L9: 0 | M9: 0 | N9: 0 | O9: 0 | P9: 0 | Q9: 0 | R9: 0 | S9: 0 | T9: 0 | U9: 0 | V9: 0 | W9: 0 | X9: 0 | Y9: 0 | Z9: 0 | AA9: 0 | AB9: 0 | AC9: 0 | AD9: 0 | AE9: 0 | AF9: 0 | AG9: 0 | AM9: 0 | AN9: гурппа4 | AO9: 0 | AP9: =ROUND(F9/$B2*100,3) -> 0 | AQ9: 0 | AR9: 0 | AS9: 0 | AT9: 0 | AU9: 0 | AV9: 0 | AW9: 0 | AX9: 0 | AY9: 0 | AZ9: 0 | BA9: 0 | BB9: 0 | BC9: 0 | BD9: 0 | BE9: 0 | BF9: 0 | BG9: 0 | BH9: 0 | BI9: 0 | BJ9: 0 | BK9: 0 | BL9: 0 | BM9: 0 | BN9: 0 | BO9: 0 | BP9: 0 | BQ9: 0 | BV9: (0) [0,000] | BW9: (0) [0,000] | BX9: (0) [0,000] | BY9: (0) [0,000] | BZ9: (0) [0,000] | CA9: (0) [0,000] | CB9: (0) [0,000] | CC9: (0) [0,000] | CD9: (0) [0,000] | CE9: (0) [0,000] | CF9: (0) [0,000] | CG9: (0) [0,000] | CH9: (0) [0,000] | CI9: (0) [0,000] | CJ9: (0) [0,000] | CK9: (0) [0,000] | CL9: (0) [0,000] | CM9: (0) [0,000] | CN9: (0) [0,000] | CO9: (0) [0,000] | CP9: (0) [0,000] | CQ9: (0) [0,000] | CR9: (0) [0,000] | CS9: (0) [0,000] | CT9: (0) [0,000] | CU9: (0) [0,000] | CV9: (0) [0,000] | CW9: (0) [0,000] | CX9: (0) [0,000]
D10: гурппа5 | E10: 0 | F10: 0 | G10: 0 | H10: 0 | I10: 0 | J10: 0 | K10: 0 | L10: 0 | M10: 0 | N10: 0 | O10: 0 | P10: 0 | Q10: 0 | R10: 0 | S10: 0 | T10: 0 | U10: 0 | V10: 0 | W10: 0 | X10: 0 | Y10: 0 | Z10: 0 | AA10: 0 | AB10: 0 | AC10: 0 | AD10: 0 | AE10: 0 | AF10: 0 | AG10: 0 | AM10: 0 | AN10: гурппа5 | AO10: 0 | AP10: =ROUND(F10/$B2*100,3) -> 0 | AQ10: 0 | AR10: 0 | AS10: 0 | AT10: 0 | AU10: 0 | AV10: 0 | AW10: 0 | AX10: 0 | AY10: 0 | AZ10: 0 | BA10: 0 | BB10: 0 | BC10: 0 | BD10: 0 | BE10: 0 | BF10: 0 | BG10: 0 | BH10: 0 | BI10: 0 | BJ10: 0 | BK10: 0 | BL10: 0 | BM10: 0 | BN10: 0 | BO10: 0 | BP10: 0 | BQ10: 0 | BV10: (0) [0,000] | BW10: (0) [0,000] | BX10: (0) [0,000] | BY10: (0) [0,000] | BZ10: (0) [0,000] | CA10: (0) [0,000] | CB10: (0) [0,000] | CC10: (0) [0,000] | CD10: (0) [0,000] | CE10: (0) [0,000] | CF10: (0) [0,000] | CG10: (0) [0,000] | CH10: (0) [0,000] | CI10: (0) [0,000] | CJ10: (0) [0,000] | CK10: (0) [0,000] | CL10: (0) [0,000] | CM10: (0) [0,000] | CN10: (0) [0,000] | CO10: (0) [0,000] | CP10: (0) [0,000] | CQ10: (0) [0,000] | CR10: (0) [0,000] | CS10: (0) [0,000] | CT10: (0) [0,000] | CU10: (0) [0,000] | CV10: (0) [0,000] | CW10: (0) [0,000] | CX10: (0) [0,000]
D11: гурппа6 | E11: 0 | F11: 0 | G11: 0 | H11: 0 | I11: 0 | J11: 0 | K11: 0 | L11: 0 | M11: 0 | N11: 0 | O11: 0 | P11: 0 | Q11: 0 | R11: 0 | S11: 0 | T11: 0 | U11: 0 | V11: 0 | W11: 0 | X11: 0 | Y11: 0 | Z11: 0 | AA11: 0 | AB11: 0 | AC11: 0 | AD11: 0 | AE11: 0 | AF11: 0 | AG11: 0 | AM11: 0 | AN11: гурппа6 | AO11: 0 | AP11: =ROUND(F11/$B2*100,3) -> 0 | AQ11: 0 | AR11: 0 | AS11: 0 | AT11: 0 | AU11: 0 | AV11: 0 | AW11: 0 | AX11: 0 | AY11: 0 | AZ11: 0 | BA11: 0 | BB11: 0 | BC11: 0 | BD11: 0 | BE11: 0 | BF11: 0 | BG11: 0 | BH11: 0 | BI11: 0 | BJ11: 0 | BK11: 0 | BL11: 0 | BM11: 0 | BN11: 0 | BO11: 0 | BP11: 0 | BQ11: 0 | BV11: (0) [0,000] | BW11: (0) [0,000] | BX11: (0) [0,000] | BY11: (0) [0,000] | BZ11: (0) [0,000] | CA11: (0) [0,000] | CB11: (0) [0,000] | CC11: (0) [0,000] | CD11: (0) [0,000] | CE11: (0) [0,000] | CF11: (0) [0,000] | CG11: (0) [0,000] | CH11: (0) [0,000] | CI11: (0) [0,000] | CJ11: (0) [0,000] | CK11: (0) [0,000] | CL11: (0) [0,000] | CM11: (0) [0,000] | CN11: (0) [0,000] | CO11: (0) [0,000] | CP11: (0) [0,000] | CQ11: (0) [0,000] | CR11: (0) [0,000] | CS11: (0) [0,000] | CT11: (0) [0,000] | CU11: (0) [0,000] | CV11: (0) [0,000] | CW11: (0) [0,000] | CX11: (0) [0,000]
C12: =SUM(F12:AG13) -> 0 | D12: гурппа1 | E12: 0 | F12: 0 | G12: 0 | H12: 0 | I12: 0 | J12: 0 | K12: 0 | L12: 0 | M12: 0 | N12: 0 | O12: 0 | P12: 0 | Q12: 0 | R12: 0 | S12: 0 | T12: 0 | U12: 0 | V12: 0 | W12: 0 | X12: 0 | Y12: 0 | Z12: 0 | AA12: 0 | AB12: 0 | AC12: 0 | AD12: 0 | AE12: 0 | AF12: 0 | AG12: 0 | AJ12: =AK12-AL12 -> 0 | AK12: =ROUND(C12/$B2*100,3) -> 0 | AL12: =SUM(AO12:AO13) -> 0 | AM12: 0 | AN12: гурппа1 | AO12: 0 | AP12: =ROUND(F12/$B2*100,3) -> 0 | AQ12: 0 | AR12: 0 | AS12: 0 | AT12: 0 | AU12: 0 | AV12: 0 | AW12: 0 | AX12: 0 | AY12: 0 | AZ12: 0 | BA12: 0 | BB12: 0 | BC12: 0 | BD12: 0 | BE12: 0 | BF12: 0 | BG12: 0 | BH12: 0 | BI12: 0 | BJ12: 0 | BK12: 0 | BL12: 0 | BM12: 0 | BN12: 0 | BO12: 0 | BP12: 0 | BQ12: 0 | BU12: ="("&SUM(E12:E13)&") ["&FIXED(SUM(AO12:AO13),3)&"]" -> (0) [0,000] | BV12: (0) [0,000] | BW12: (0) [0,000] | BX12: (0) [0,000] | BY12: (0) [0,000] | BZ12: (0) [0,000] | CA12: (0) [0,000] | CB12: (0) [0,000] | CC12: (0) [0,000] | CD12: (0) [0,000] | CE12: (0) [0,000] | CF12: (0) [0,000] | CG12: (0) [0,000] | CH12: (0) [0,000] | CI12: (0) [0,000] | CJ12: (0) [0,000] | CK12: (0) [0,000] | CL12: (0) [0,000] | CM12: (0) [0,000] | CN12: (0) [0,000] | CO12: (0) [0,000] | CP12: (0) [0,000] | CQ12: (0) [0,000] | CR12: (0) [0,000] | CS12: (0) [0,000] | CT12: (0) [0,000] | CU12: (0) [0,000] | CV12: (0) [0,000] | CW12: (0) [0,000] | CX12: (0) [0,000]
D13: гурппа2 | E13: 0 | F13: 0 | G13: 0 | H13: 0 | I13: 0 | J13: 0 | K13: 0 | L13: 0 | M13: 0 | N13: 0 | O13: 0 | P13: 0 | Q13: 0 | R13: 0 | S13: 0 | T13: 0 | U13: 0 | V13: 0 | W13: 0 | X13: 0 | Y13: 0 | Z13: 0 | AA13: 0 | AB13: 0 | AC13: 0 | AD13: 0 | AE13: 0 | AF13: 0 | AG13: 0 | AM13: 0 | AN13: гурппа2 | AO13: 0 | AP13: =ROUND(F13/$B2*100,3) -> 0 | AQ13: 0 | AR13: 0 | AS13: 0 | AT13: 0 | AU13: 0 | AV13: 0 | AW13: 0 | AX13: 0 | AY13: 0 | AZ13: 0 | BA13: 0 | BB13: 0 | BC13: 0 | BD13: 0 | BE13: 0 | BF13: 0 | BG13: 0 | BH13: 0 | BI13: 0 | BJ13: 0 | BK13: 0 | BL13: 0 | BM13: 0 | BN13: 0 | BO13: 0 | BP13: 0 | BQ13: 0 | BV13: (0) [0,000] | BW13: (0) [0,000] | BX13: (0) [0,000] | BY13: (0) [0,000] | BZ13: (0) [0,000] | CA13: (0) [0,000] | CB13: (0) [0,000] | CC13: (0) [0,000] | CD13: (0) [0,000] | CE13: (0) [0,000] | CF13: (0) [0,000] | CG13: (0) [0,000] | CH13: (0) [0,000] | CI13: (0) [0,000] | CJ13: (0) [0,000] | CK13: (0) [0,000] | CL13: (0) [0,000] | CM13: (0) [0,000] | CN13: (0) [0,000] | CO13: (0) [0,000] | CP13: (0) [0,000] | CQ13: (0) [0,000] | CR13: (0) [0,000] | CS13: (0) [0,000] | CT13: (0) [0,000] | CU13: (0) [0,000] | CV13: (0) [0,000] | CW13: (0) [0,000] | CX13: (0) [0,000]
C14: =SUM(F14:AG15) -> 0 | D14: гурппа1 | E14: 0 | F14: 0 | G14: 0 | H14: 0 | I14: 0 | J14: 0 | K14: 0 | L14: 0 | M14: 0 | N14: 0 | O14: 0 | P14: 0 | Q14: 0 | R14: 0 | S14: 0 | T14: 0 | U14: 0 | V14: 0 | W14: 0 | X14: 0 | Y14: 0 | Z14: 0 | AA14: 0 | AB14: 0 | AC14: 0 | AD14: 0 | AE14: 0 | AF14: 0 | AG14: 0 | AJ14: =AK14-AL14 -> 0 | AK14: =ROUND(C14/$B2*100,3) -> 0 | AL14: =SUM(AO14:AO15) -> 0 | AM14: 0 | AN14: гурппа1 | AO14: =SUM(AP14:BQ14) -> 0 | AP14: =ROUND(F14/$B2*100,3) -> 0 | AQ14: 0 | AR14: 0 | AS14: 0 | AT14: 0 | AU14: 0 | AV14: 0 | AW14: 0 | AX14: 0 | AY14: 0 | AZ14: 0 | BA14: 0 | BB14: 0 | BC14: 0 | BD14: 0 | BE14: 0 | BF14: 0 | BG14: 0 | BH14: 0 | BI14: 0 | BJ14: 0 | BK14: 0 | BL14: 0 | BM14: 0 | BN14: 0 | BO14: 0 | BP14: 0 | BQ14: 0 | BU14: ="("&SUM(E14:E15)&") ["&FIXED(SUM(AO14:AO15),3)&"]" -> (0) [0,000] | BV14: (0) [0,000] | BW14: (0) [0,000] | BX14: (0) [0,000] | BY14: (0) [0,000] | BZ14: (0) [0,000] | CA14: (0) [0,000] | CB14: (0) [0,000] | CC14: (0) [0,000] | CD14: (0) [0,000] | CE14: (0) [0,000] | CF14: (0) [0,000] | CG14: (0) [0,000] | CH14: (0) [0,000] | CI14: (0) [0,000] | CJ14: (0) [0,000] | CK14: (0) [0,000] | CL14: (0) [0,000] | CM14: (0) [0,000] | CN14: (0) [0,000] | CO14: (0) [0,000] | CP14: (0) [0,000] | CQ14: (0) [0,000] | CR14: (0) [0,000] | CS14: (0) [0,000] | CT14: (0) [0,000] | CU14: (0) [0,000] | CV14: (0) [0,000] | CW14: (0) [0,000] | CX14: (0) [0,000]
D15: гурппа2 | E15: 0 | F15: 0 | G15: 0 | H15: 0 | I15: 0 | J15: 0 | K15: 0 | L15: 0 | M15: 0 | N15: 0 | O15: 0 | P15: 0 | Q15: 0 | R15: 0 | S15: 0 | T15: 0 | U15: 0 | V15: 0 | W15: 0 | X15: 0 | Y15: 0 | Z15: 0 | AA15: 0 | AB15: 0 | AC15: 0 | AD15: 0 | AE15: 0 | AF15: 0 | AG15: 0 | AM15: 0 | AN15: гурппа2 | AO15: 0 | AP15: =ROUND(F15/$B2*100,3) -> 0 | AQ15: 0 | AR15: 0 | AS15: 0 | AT15: 0 | AU15: 0 | AV15: 0 | AW15: 0 | AX15: 0 | AY15: 0 | AZ15: 0 | BA15: 0 | BB15: 0 | BC15: 0 | BD15: 0 | BE15: 0 | BF15: 0 | BG15: 0 | BH15: 0 | BI15: 0 | BJ15: 0 | BK15: 0 | BL15: 0 | BM15: 0 | BN15: 0 | BO15: 0 | BP15: 0 | BQ15: 0 | BV15: (0) [0,000] | BW15: (0) [0,000] | BX15: (0) [0,000] | BY15: (0) [0,000] | BZ15: (0) [0,000] | CA15: (0) [0,000] | CB15: (0) [0,000] | CC15: (0) [0,000] | CD15: (0) [0,000] | CE15: (0) [0,000] | CF15: (0) [0,000] | CG15: (0) [0,000] | CH15: (0) [0,000] | CI15: (0) [0,000] | CJ15: (0) [0,000] | CK15: (0) [0,000] | CL15: (0) [0,000] | CM15: (0) [0,000] | CN15: (0) [0,000] | CO15: (0) [0,000] | CP15: (0) [0,000] | CQ15: (0) [0,000] | CR15: (0) [0,000] | CS15: (0) [0,000] | CT15: (0) [0,000] | CU15: (0) [0,000] | CV15: (0) [0,000] | CW15: (0) [0,000] | CX15: (0) [0,000]
AK16: =AK2+AK6+AK12+AK14 -> 100
AJ18: В столбце AI выбирается необходимый параметр либо несколько параметров (с помощью правой кнопки мыши)
C20: Пример как должно выглядеть | E20: Столбец АI | F20: столбец AN | G20: ячейки с BV по СХ
E21: =AI2 -> РФ | F21: =AN3 -> гурппа2 | G21: =BV3 -> (50) [18,382] | H21: =BW3 -> (2) [0,735] | I21: (0) [0,000] | J21: (0) [0,000] | K21: (0) [0,000] | L21: (8) [2,941] | M21: (1) [0,368] | N21: (30) [11,029] | O21: (0) [0,000] | P21: (2) [0,735] | Q21: (6) [2,206] | R21: (0) [0,000] | S21: (0) [0,000] | T21: (0) [0,000] | U21: (0) [0,000] | V21: (0) [0,000] | W21: (0) [0,000] | X21: (0) [0,000] | Y21: (0) [0,000] | Z21: (1) [0,368] | AA21: (0) [0,000] | AB21: (0) [0,000] | AC21: (0) [0,000] | AD21: (0) [0,000] | AE21: (0) [0,000] | AF21: (0) [0,000] | AG21: (0) [0,000] | AH21: (0) [0,000] | AI21: (0) [0,000]
F22: =AN4 -> гурппа3 | G22: =BV4 -> (222) [81,617] | H22: =BW4 -> (61) [22,426] | I22: (0) [0,000] | J22: (0) [0,000] | K22: (0) [0,000] | L22: (1) [0,368] | M22: (0) [0,000] | N22: (122) [44,853] | O22: (0) [0,000] | P22: (0) [0,000] | Q22: (36) [13,235] | R22: (0) [0,000] | S22: (2) [0,735] | T22: (0) [0,000] | U22: (0) [0,000] | V22: (0) [0,000] | W22: (0) [0,000] | X22: (0) [0,000] | Y22: (0) [0,000] | Z22: (0) [0,000] | AA22: (0) [0,000] | AB22: (0) [0,000] | AC22: (0) [0,000] | AD22: (0) [0,000] | AE22: (0) [0,000] | AF22: (0) [0,000] | AG22: (0) [0,000] | AH22: (0) [0,000] | AI22: (0) [0,000]
A27: ПРИМЕР 2
F28: З11 | G28: З12 | H28: З13 | I28: З14 | J28: З21 | K28: З22 | L28: З23 | M28: З24 | N28: З25 | O28: З31 | P28: З32 | Q28: З33 | R28: Ж11 | S28: Ж12 | T28: Ж13 | U28: Ж14 | V28: Ж15 | W28: Ж16 | X28: Ж2 | Y28: П11 | Z28: П12 | AA28: П13 | AB28: П14 | AC28: П2 | AD28: П31 | AE28: П32 | AF28: П33 | AG28: П34 | AP28: З11 | AQ28: З12 | AR28: З13 | AS28: З14 | AT28: З21 | AU28: З22 | AV28: З23 | AW28: З24 | AX28: З25 | AY28: З31 | AZ28: З32 | BA28: З33 | BB28: Ж11 | BC28: Ж12 | BD28: Ж13 | BE28: Ж14 | BF28: Ж15 | BG28: Ж16 | BH28: Ж2 | BI28: П11 | BJ28: П12 | BK28: П13 | BL28: П14 | BM28: П2 | BN28: П31 | BO28: П32 | BP28: П33 | BQ28: П34 | BW28: З11 | BX28: З12 | BY28: З13 | BZ28: З14 | CA28: З21 | CB28: З22 | CC28: З23 | CD28: З24 | CE28: З25 | CF28: З31 | CG28: З32 | CH28: З33 | CI28: Ж11 | CJ28: Ж12 | CK28: Ж13 | CL28: Ж14 | CM28: Ж15 | CN28: Ж16 | CO28: Ж2 | CP28: П11 | CQ28: П12 | CR28: П13 | CS28: П14 | CT28: П2 | CU28: П31 | CV28: П32 | CW28: П33 | CX28: П34
A29: НАИМЕНОВАНИЕ ВОПРОСА | B29: =SUM(C29:C42) -> 499 | C29: =SUM(F29:AG32) -> 199 | D29: гурппа1 | E29: =SUM(F29:AG29) -> 100 | F29: 0 | G29: 100 | H29: 0 | I29: 0 | J29: 0 | K29: 0 | L29: 0 | M29: 0 | N29: 0 | O29: 0 | P29: 0 | Q29: 0 | R29: 0 | S29: 0 | T29: 0 | U29: 0 | V29: 0 | W29: 0 | X29: 0 | Y29: 0 | Z29: 0 | AA29: 0 | AB29: 0 | AC29: 0 | AD29: 0 | AE29: 0 | AF29: 0 | AG29: 0 | AI29: РФ | AJ29: =AK29-AL29 -> 0.001 | AK29: =ROUND(C29/$B29*100,3) -> 39.88 | AL29: =SUM(AO29:AO32) -> 39.879 | AM29: =IF(AO29>0,1,0) -> 1 | AN29: =D29 -> гурппа1 | AO29: =SUM(AP29:BQ29) -> 20.04 | AP29: =ROUND(F29/$B29*100,3) -> 0 | AQ29: =ROUND(G29/$B29*100,3) -> 20.04 | AR29: =ROUND(H29/$B29*100,3) -> 0 | AS29: =ROUND(I29/$B29*100,3) -> 0 | AT29: =ROUND(J29/$B29*100,3) -> 0 | AU29: =ROUND(K29/$B29*100,3) -> 0 | AV29: =ROUND(L29/$B29*100,3) -> 0 | AW29: =ROUND(M29/$B29*100,3) -> 0 | AX29: =ROUND(N29/$B29*100,3) -> 0 | AY29: =ROUND(O29/$B29*100,3) -> 0 | AZ29: =ROUND(P29/$B29*100,3) -> 0 | BA29: =ROUND(Q29/$B29*100,3) -> 0 | BB29: =ROUND(R29/$B29*100,3) -> 0 | BC29: =ROUND(S29/$B29*100,3) -> 0 | BD29: =ROUND(T29/$B29*100,3) -> 0 | BE29: =ROUND(U29/$B29*100,3) -> 0 | BF29: =ROUND(V29/$B29*100,3) -> 0 | BG29: =ROUND(W29/$B29*100,3) -> 0 | BH29: =ROUND(X29/$B29*100,3) -> 0 | BI29: =ROUND(Y29/$B29*100,3) -> 0 | BJ29: =ROUND(Z29/$B29*100,3) -> 0 | BK29: =ROUND(AA29/$B29*100,3) -> 0 | BL29: =ROUND(AB29/$B29*100,3) -> 0 | BM29: =ROUND(AC29/$B29*100,3) -> 0 | BN29: =ROUND(AD29/$B29*100,3) -> 0 | BO29: =ROUND(AE29/$B29*100,3) -> 0 | BP29: =ROUND(AF29/$B29*100,3) -> 0 | BQ29: =ROUND(AG29/$B29*100,3) -> 0 | BT29: ="("&SUM(B29)&") ["&FIXED(SUM(AL29:AL42),3)&"]" -> (499) [99,999] | BU29: ="("&SUM(E29:E32)&") ["&FIXED(SUM(AO29:AO32),3)&"]" -> (199) [39,879] | BV29: ="("&SUM(E29)&") ["&FIXED(SUM(AO29),3)&"]" -> (100) [20,040] | BW29: (0) [0,000] | BX29: (100) [20,040] | BY29: (0) [0,000] | BZ29: (0) [0,000] | CA29: (0) [0,000] | CB29: (0) [0,000] | CC29: (0) [0,000] | CD29: (0) [0,000] | CE29: (0) [0,000] | CF29: (0) [0,000] | CG29: (0) [0,000] | CH29: (0) [0,000] | CI29: (0) [0,000] | CJ29: (0) [0,000] | CK29: (0) [0,000] | CL29: (0) [0,000] | CM29: (0) [0,000] | CN29: (0) [0,000] | CO29: (0) [0,000] | CP29: (0) [0,000] | CQ29: (0) [0,000] | CR29: (0) [0,000] | CS29: (0) [0,000] | CT29: (0) [0,000] | CU29: (0) [0,000] | CV29: (0) [0,000] | CW29: (0) [0,000] | CX29: (0) [0,000]
D30: гурппа2 | E30: =SUM(F30:AG30) -> 0 | F30: 0 | G30: 0 | H30: 0 | I30: 0 | J30: 0 | K30: 0 | L30: 0 | M30: 0 | N30: 0 | O30: 0 | P30: 0 | Q30: 0 | R30: 0 | S30: 0 | T30: 0 | U30: 0 | V30: 0 | W30: 0 | X30: 0 | Y30: 0 | Z30: 0 | AA30: 0 | AB30: 0 | AC30: 0 | AD30: 0 | AE30: 0 | AF30: 0 | AG30: 0 | AM30: =IF(AO30>0,1,0) -> 0 | AN30: гурппа2 | AO30: =SUM(AP30:BQ30) -> 0 | AP30: =ROUND(F30/$B29*100,3) -> 0 | AQ30: =ROUND(G30/$B29*100,3) -> 0 | AR30: =ROUND(H30/$B29*100,3) -> 0 | AS30: =ROUND(I30/$B29*100,3) -> 0 | AT30: =ROUND(J30/$B29*100,3) -> 0 | AU30: =ROUND(K30/$B29*100,3) -> 0 | AV30: =ROUND(L30/$B29*100,3) -> 0 | AW30: =ROUND(M30/$B29*100,3) -> 0 | AX30: =ROUND(N30/$B29*100,3) -> 0 | AY30: =ROUND(O30/$B29*100,3) -> 0 | AZ30: =ROUND(P30/$B29*100,3) -> 0 | BA30: =ROUND(Q30/$B29*100,3) -> 0 | BB30: =ROUND(R30/$B29*100,3) -> 0 | BC30: =ROUND(S30/$B29*100,3) -> 0 | BD30: =ROUND(T30/$B29*100,3) -> 0 | BE30: =ROUND(U30/$B29*100,3) -> 0 | BF30: =ROUND(V30/$B29*100,3) -> 0 | BG30: =ROUND(W30/$B29*100,3) -> 0 | BH30: =ROUND(X30/$B29*100,3) -> 0 | BI30: =ROUND(Y30/$B29*100,3) -> 0 | BJ30: =ROUND(Z30/$B29*100,3) -> 0 | BK30: =ROUND(AA30/$B29*100,3) -> 0 | BL30: =ROUND(AB30/$B29*100,3) -> 0 | BM30: =ROUND(AC30/$B29*100,3) -> 0 | BN30: =ROUND(AD30/$B29*100,3) -> 0 | BO30: =ROUND(AE30/$B29*100,3) -> 0 | BP30: =ROUND(AF30/$B29*100,3) -> 0 | BQ30: =ROUND(AG30/$B29*100,3) -> 0 | BV30: ="("&SUM(E30)&") ["&FIXED(SUM(AO30),3)&"]" -> (0) [0,000] | BW30: ="("&SUM(F30)&") ["&FIXED(SUM(AP30),3)&"]" -> (0) [0,000] | BX30: ="("&SUM(G30)&") ["&FIXED(SUM(AQ30),3)&"]" -> (0) [0,000] | BY30: ="("&SUM(H30)&") ["&FIXED(SUM(AR30),3)&"]" -> (0) [0,000] | BZ30: ="("&SUM(I30)&") ["&FIXED(SUM(AS30),3)&"]" -> (0) [0,000] | CA30: ="("&SUM(J30)&") ["&FIXED(SUM(AT30),3)&"]" -> (0) [0,000] | CB30: ="("&SUM(K30)&") ["&FIXED(SUM(AU30),3)&"]" -> (0) [0,000] | CC30: ="("&SUM(L30)&") ["&FIXED(SUM(AV30),3)&"]" -> (0) [0,000] | CD30: ="("&SUM(M30)&") ["&FIXED(SUM(AW30),3)&"]" -> (0) [0,000] | CE30: ="("&SUM(N30)&") ["&FIXED(SUM(AX30),3)&"]" -> (0) [0,000] | CF30: ="("&SUM(O30)&") ["&FIXED(SUM(AY30),3)&"]" -> (0) [0,000] | CG30: ="("&SUM(P30)&") ["&FIXED(SUM(AZ30),3)&"]" -> (0) [0,000] | CH30: ="("&SUM(Q30)&") ["&FIXED(SUM(BA30),3)&"]" -> (0) [0,000] | CI30: ="("&SUM(R30)&") ["&FIXED(SUM(BB30),3)&"]" -> (0) [0,000] | CJ30: ="("&SUM(S30)&") ["&FIXED(SUM(BC30),3)&"]" -> (0) [0,000] | CK30: ="("&SUM(T30)&") ["&FIXED(SUM(BD30),3)&"]" -> (0) [0,000] | CL30: ="("&SUM(U30)&") ["&FIXED(SUM(BE30),3)&"]" -> (0) [0,000] | CM30: ="("&SUM(V30)&") ["&FIXED(SUM(BF30),3)&"]" -> (0) [0,000] | CN30: ="("&SUM(W30)&") ["&FIXED(SUM(BG30),3)&"]" -> (0) [0,000] | CO30: ="("&SUM(X30)&") ["&FIXED(SUM(BH30),3)&"]" -> (0) [0,000] | CP30: ="("&SUM(Y30)&") ["&FIXED(SUM(BI30),3)&"]" -> (0) [0,000] | CQ30: ="("&SUM(Z30)&") ["&FIXED(SUM(BJ30),3)&"]" -> (0) [0,000] | CR30: ="("&SUM(AA30)&") ["&FIXED(SUM(BK30),3)&"]" -> (0) [0,000] | CS30: ="("&SUM(AB30)&") ["&FIXED(SUM(BL30),3)&"]" -> (0) [0,000] | CT30: ="("&SUM(AC30)&") ["&FIXED(SUM(BM30),3)&"]" -> (0) [0,000] | CU30: ="("&SUM(AD30)&") ["&FIXED(SUM(BN30),3)&"]" -> (0) [0,000] | CV30: ="("&SUM(AE30)&") ["&FIXED(SUM(BO30),3)&"]" -> (0) [0,000] | CW30: ="("&SUM(AF30)&") ["&FIXED(SUM(BP30),3)&"]" -> (0) [0,000] | CX30: ="("&SUM(AG30)&") ["&FIXED(SUM(BQ30),3)&"]" -> (0) [0,000]
D31: гурппа3 | E31: 99 | F31: 0 | G31: 0 | H31: 0 | I31: 0 | J31: 1 | K31: 0 | L31: 60 | M31: 0 | N31: 0 | O31: 36 | P31: 0 | Q31: 2 | R31: 0 | S31: 0 | T31: 0 | U31: 0 | V31: 0 | W31: 0 | X31: 0 | Y31: 0 | Z31: 0 | AA31: 0 | AB31: 0 | AC31: 0 | AD31: 0 | AE31: 0 | AF31: 0 | AG31: 0 | AM31: 1 | AN31: гурппа3 | AO31: =SUM(AP31:BQ31) -> 19.839 | AP31: =ROUND(F31/$B29*100,3) -> 0 | AQ31: =ROUND(G31/$B29*100,3) -> 0 | AR31: =ROUND(H31/$B29*100,3) -> 0 | AS31: =ROUND(I31/$B29*100,3) -> 0 | AT31: =ROUND(J31/$B29*100,3) -> 0.2 | AU31: =ROUND(K31/$B29*100,3) -> 0 | AV31: =ROUND(L31/$B29*100,3) -> 12.024 | AW31: =ROUND(M31/$B29*100,3) -> 0 | AX31: =ROUND(N31/$B29*100,3) -> 0 | AY31: =ROUND(O31/$B29*100,3) -> 7.214 | AZ31: =ROUND(P31/$B29*100,3) -> 0 | BA31: =ROUND(Q31/$B29*100,3) -> 0.401 | BB31: =ROUND(R31/$B29*100,3) -> 0 | BC31: =ROUND(S31/$B29*100,3) -> 0 | BD31: =ROUND(T31/$B29*100,3) -> 0 | BE31: =ROUND(U31/$B29*100,3) -> 0 | BF31: =ROUND(V31/$B29*100,3) -> 0 | BG31: =ROUND(W31/$B29*100,3) -> 0 | BH31: =ROUND(X31/$B29*100,3) -> 0 | BI31: =ROUND(Y31/$B29*100,3) -> 0 | BJ31: =ROUND(Z31/$B29*100,3) -> 0 | BK31: =ROUND(AA31/$B29*100,3) -> 0 | BL31: =ROUND(AB31/$B29*100,3) -> 0 | BM31: =ROUND(AC31/$B29*100,3) -> 0 | BN31: =ROUND(AD31/$B29*100,3) -> 0 | BO31: =ROUND(AE31/$B29*100,3) -> 0 | BP31: =ROUND(AF31/$B29*100,3) -> 0 | BQ31: =ROUND(AG31/$B29*100,3) -> 0 | BV31: (99) [19,839] | BW31: (0) [0,000] | BX31: (0) [0,000] | BY31: (0) [0,000] | BZ31: (0) [0,000] | CA31: (1) [0,200] | CB31: (0) [0,000] | CC31: (60) [12,024] | CD31: (0) [0,000] | CE31: (0) [0,000] | CF31: (36) [7,214] | CG31: (0) [0,000] | CH31: (2) [0,401] | CI31: (0) [0,000] | CJ31: (0) [0,000] | CK31: (0) [0,000] | CL31: (0) [0,000] | CM31: (0) [0,000] | CN31: (0) [0,000] | CO31: (0) [0,000] | CP31: (0) [0,000] | CQ31: (0) [0,000] | CR31: (0) [0,000] | CS31: (0) [0,000] | CT31: (0) [0,000] | CU31: (0) [0,000] | CV31: (0) [0,000] | CW31: (0) [0,000] | CX31: (0) [0,000]
D32: гурппа4 | E32: 0 | F32: 0 | G32: 0 | H32: 0 | I32: 0 | J32: 0 | K32: 0 | L32: 0 | M32: 0 | N32: 0 | O32: 0 | P32: 0 | Q32: 0 | R32: 0 | S32: 0 | T32: 0 | U32: 0 | V32: 0 | W32: 0 | X32: 0 | Y32: 0 | Z32: 0 | AA32: 0 | AB32: 0 | AC32: 0 | AD32: 0 | AE32: 0 | AF32: 0 | AG32: 0 | AM32: 0 | AN32: гурппа4 | AO32: =SUM(AP32:BQ32) -> 0 | AP32: =ROUND(F32/$B29*100,3) -> 0 | AQ32: =ROUND(G32/$B29*100,3) -> 0 | AR32: =ROUND(H32/$B29*100,3) -> 0 | AS32: =ROUND(I32/$B29*100,3) -> 0 | AT32: =ROUND(J32/$B29*100,3) -> 0 | AU32: =ROUND(K32/$B29*100,3) -> 0 | AV32: =ROUND(L32/$B29*100,3) -> 0 | AW32: =ROUND(M32/$B29*100,3) -> 0 | AX32: =ROUND(N32/$B29*100,3) -> 0 | AY32: =ROUND(O32/$B29*100,3) -> 0 | AZ32: =ROUND(P32/$B29*100,3) -> 0 | BA32: =ROUND(Q32/$B29*100,3) -> 0 | BB32: =ROUND(R32/$B29*100,3) -> 0 | BC32: =ROUND(S32/$B29*100,3) -> 0 | BD32: =ROUND(T32/$B29*100,3) -> 0 | BE32: =ROUND(U32/$B29*100,3) -> 0 | BF32: =ROUND(V32/$B29*100,3) -> 0 | BG32: =ROUND(W32/$B29*100,3) -> 0 | BH32: =ROUND(X32/$B29*100,3) -> 0 | BI32: =ROUND(Y32/$B29*100,3) -> 0 | BJ32: =ROUND(Z32/$B29*100,3) -> 0 | BK32: =ROUND(AA32/$B29*100,3) -> 0 | BL32: =ROUND(AB32/$B29*100,3) -> 0 | BM32: =ROUND(AC32/$B29*100,3) -> 0 | BN32: =ROUND(AD32/$B29*100,3) -> 0 | BO32: =ROUND(AE32/$B29*100,3) -> 0 | BP32: =ROUND(AF32/$B29*100,3) -> 0 | BQ32: =ROUND(AG32/$B29*100,3) -> 0 | BV32: ="("&SUM(E32)&") ["&FIXED(SUM(AO32),3)&"]" -> (0) [0,000] | BW32: (0) [0,000] | BX32: (0) [0,000] | BY32: (0) [0,000] | BZ32: (0) [0,000] | CA32: (0) [0,000] | CB32: (0) [0,000] | CC32: (0) [0,000] | CD32: (0) [0,000] | CE32: (0) [0,000] | CF32: (0) [0,000] | CG32: (0) [0,000] | CH32: (0) [0,000] | CI32: (0) [0,000] | CJ32: (0) [0,000] | CK32: (0) [0,000] | CL32: (0) [0,000] | CM32: (0) [0,000] | CN32: (0) [0,000] | CO32: (0) [0,000] | CP32: (0) [0,000] | CQ32: (0) [0,000] | CR32: (0) [0,000] | CS32: (0) [0,000] | CT32: (0) [0,000] | CU32: (0) [0,000] | CV32: (0) [0,000] | CW32: (0) [0,000] | CX32: (0) [0,000]
C33: =SUM(F33:AG38) -> 0 | D33: гурппа1 | E33: 0 | F33: 0 | G33: 0 | H33: 0 | I33: 0 | J33: 0 | K33: 0 | L33: 0 | M33: 0 | N33: 0 | O33: 0 | P33: 0 | Q33: 0 | R33: 0 | S33: 0 | T33: 0 | U33: 0 | V33: 0 | W33: 0 | X33: 0 | Y33: 0 | Z33: 0 | AA33: 0 | AB33: 0 | AC33: 0 | AD33: 0 | AE33: 0 | AF33: 0 | AG33: 0 | AJ33: =AK33-AL33 -> 0 | AK33: =ROUND(C33/$B29*100,3) -> 0 | AL33: =SUM(AO33:AO38) -> 0 | AM33: =IF(AO33>0,1,0) -> 0 | AN33: гурппа1 | AO33: 0 | AP33: =ROUND(F33/$B29*100,3) -> 0 | AQ33: =ROUND(G33/$B29*100,3) -> 0 | AR33: =ROUND(H33/$B29*100,3) -> 0 | AS33: =ROUND(I33/$B29*100,3) -> 0 | AT33: =ROUND(J33/$B29*100,3) -> 0 | AU33: =ROUND(K33/$B29*100,3) -> 0 | AV33: =ROUND(L33/$B29*100,3) -> 0 | AW33: =ROUND(M33/$B29*100,3) -> 0 | AX33: =ROUND(N33/$B29*100,3) -> 0 | AY33: =ROUND(O33/$B29*100,3) -> 0 | AZ33: =ROUND(P33/$B29*100,3) -> 0 | BA33: =ROUND(Q33/$B29*100,3) -> 0 | BB33: =ROUND(R33/$B29*100,3) -> 0 | BC33: =ROUND(S33/$B29*100,3) -> 0 | BD33: =ROUND(T33/$B29*100,3) -> 0 | BE33: =ROUND(U33/$B29*100,3) -> 0 | BF33: =ROUND(V33/$B29*100,3) -> 0 | BG33: =ROUND(W33/$B29*100,3) -> 0 | BH33: =ROUND(X33/$B29*100,3) -> 0 | BI33: =ROUND(Y33/$B29*100,3) -> 0 | BJ33: =ROUND(Z33/$B29*100,3) -> 0 | BK33: =ROUND(AA33/$B29*100,3) -> 0 | BL33: =ROUND(AB33/$B29*100,3) -> 0 | BM33: =ROUND(AC33/$B29*100,3) -> 0 | BN33: =ROUND(AD33/$B29*100,3) -> 0 | BO33: =ROUND(AE33/$B29*100,3) -> 0 | BP33: =ROUND(AF33/$B29*100,3) -> 0 | BQ33: =ROUND(AG33/$B29*100,3) -> 0 | BU33: ="("&SUM(C33)&") ["&FIXED(SUM(AO33:AO38),3)&"]" -> (0) [0,000] | BV33: ="("&SUM(E33)&") ["&FIXED(SUM(AO33),3)&"]" -> (0) [0,000] | BW33: (0) [0,000] | BX33: (0) [0,000] | BY33: (0) [0,000] | BZ33: (0) [0,000] | CA33: (0) [0,000] | CB33: (0) [0,000] | CC33: (0) [0,000] | CD33: (0) [0,000] | CE33: (0) [0,000] | CF33: (0) [0,000] | CG33: (0) [0,000] | CH33: (0) [0,000] | CI33: (0) [0,000] | CJ33: (0) [0,000] | CK33: (0) [0,000] | CL33: (0) [0,000] | CM33: (0) [0,000] | CN33: (0) [0,000] | CO33: (0) [0,000] | CP33: (0) [0,000] | CQ33: (0) [0,000] | CR33: (0) [0,000] | CS33: (0) [0,000] | CT33: (0) [0,000] | CU33: (0) [0,000] | CV33: (0) [0,000] | CW33: (0) [0,000] | CX33: (0) [0,000]
D34: гурппа2 | E34: 0 | F34: 0 | G34: 0 | H34: 0 | I34: 0 | J34: 0 | K34: 0 | L34: 0 | M34: 0 | N34: 0 | O34: 0 | P34: 0 | Q34: 0 | R34: 0 | S34: 0 | T34: 0 | U34: 0 | V34: 0 | W34: 0 | X34: 0 | Y34: 0 | Z34: 0 | AA34: 0 | AB34: 0 | AC34: 0 | AD34: 0 | AE34: 0 | AF34: 0 | AG34: 0 | AM34: =IF(AO34>0,1,0) -> 0 | AN34: гурппа2 | AO34: 0 | AP34: =ROUND(F34/$B29*100,3) -> 0 | AQ34: =ROUND(G34/$B29*100,3) -> 0 | AR34: =ROUND(H34/$B29*100,3) -> 0 | AS34: =ROUND(I34/$B29*100,3) -> 0 | AT34: =ROUND(J34/$B29*100,3) -> 0 | AU34: =ROUND(K34/$B29*100,3) -> 0 | AV34: =ROUND(L34/$B29*100,3) -> 0 | AW34: =ROUND(M34/$B29*100,3) -> 0 | AX34: =ROUND(N34/$B29*100,3) -> 0 | AY34: =ROUND(O34/$B29*100,3) -> 0 | AZ34: =ROUND(P34/$B29*100,3) -> 0 | BA34: =ROUND(Q34/$B29*100,3) -> 0 | BB34: =ROUND(R34/$B29*100,3) -> 0 | BC34: =ROUND(S34/$B29*100,3) -> 0 | BD34: =ROUND(T34/$B29*100,3) -> 0 | BE34: =ROUND(U34/$B29*100,3) -> 0 | BF34: =ROUND(V34/$B29*100,3) -> 0 | BG34: =ROUND(W34/$B29*100,3) -> 0 | BH34: =ROUND(X34/$B29*100,3) -> 0 | BI34: =ROUND(Y34/$B29*100,3) -> 0 | BJ34: =ROUND(Z34/$B29*100,3) -> 0 | BK34: =ROUND(AA34/$B29*100,3) -> 0 | BL34: =ROUND(AB34/$B29*100,3) -> 0 | BM34: =ROUND(AC34/$B29*100,3) -> 0 | BN34: =ROUND(AD34/$B29*100,3) -> 0 | BO34: =ROUND(AE34/$B29*100,3) -> 0 | BP34: =ROUND(AF34/$B29*100,3) -> 0 | BQ34: =ROUND(AG34/$B29*100,3) -> 0 | BV34: (0) [0,000] | BW34: (0) [0,000] | BX34: (0) [0,000] | BY34: (0) [0,000] | BZ34: (0) [0,000] | CA34: (0) [0,000] | CB34: (0) [0,000] | CC34: (0) [0,000] | CD34: (0) [0,000] | CE34: (0) [0,000] | CF34: (0) [0,000] | CG34: (0) [0,000] | CH34: (0) [0,000] | CI34: (0) [0,000] | CJ34: (0) [0,000] | CK34: (0) [0,000] | CL34: (0) [0,000] | CM34: (0) [0,000] | CN34: (0) [0,000] | CO34: (0) [0,000] | CP34: (0) [0,000] | CQ34: (0) [0,000] | CR34: (0) [0,000] | CS34: (0) [0,000] | CT34: (0) [0,000] | CU34: (0) [0,000] | CV34: (0) [0,000] | CW34: (0) [0,000] | CX34: (0) [0,000]
D35: гурппа3 | E35: 0 | F35: 0 | G35: 0 | H35: 0 | I35: 0 | J35: 0 | K35: 0 | L35: 0 | M35: 0 | N35: 0 | O35: 0 | P35: 0 | Q35: 0 | R35: 0 | S35: 0 | T35: 0 | U35: 0 | V35: 0 | W35: 0 | X35: 0 | Y35: 0 | Z35: 0 | AA35: 0 | AB35: 0 | AC35: 0 | AD35: 0 | AE35: 0 | AF35: 0 | AG35: 0 | AM35: 0 | AN35: гурппа3 | AO35: 0 | AP35: =ROUND(F35/$B29*100,3) -> 0 | AQ35: =ROUND(G35/$B29*100,3) -> 0 | AR35: =ROUND(H35/$B29*100,3) -> 0 | AS35: =ROUND(I35/$B29*100,3) -> 0 | AT35: =ROUND(J35/$B29*100,3) -> 0 | AU35: =ROUND(K35/$B29*100,3) -> 0 | AV35: =ROUND(L35/$B29*100,3) -> 0 | AW35: =ROUND(M35/$B29*100,3) -> 0 | AX35: =ROUND(N35/$B29*100,3) -> 0 | AY35: =ROUND(O35/$B29*100,3) -> 0 | AZ35: =ROUND(P35/$B29*100,3) -> 0 | BA35: =ROUND(Q35/$B29*100,3) -> 0 | BB35: =ROUND(R35/$B29*100,3) -> 0 | BC35: =ROUND(S35/$B29*100,3) -> 0 | BD35: =ROUND(T35/$B29*100,3) -> 0 | BE35: =ROUND(U35/$B29*100,3) -> 0 | BF35: =ROUND(V35/$B29*100,3) -> 0 | BG35: =ROUND(W35/$B29*100,3) -> 0 | BH35: =ROUND(X35/$B29*100,3) -> 0 | BI35: =ROUND(Y35/$B29*100,3) -> 0 | BJ35: =ROUND(Z35/$B29*100,3) -> 0 | BK35: =ROUND(AA35/$B29*100,3) -> 0 | BL35: =ROUND(AB35/$B29*100,3) -> 0 | BM35: =ROUND(AC35/$B29*100,3) -> 0 | BN35: =ROUND(AD35/$B29*100,3) -> 0 | BO35: =ROUND(AE35/$B29*100,3) -> 0 | BP35: =ROUND(AF35/$B29*100,3) -> 0 | BQ35: =ROUND(AG35/$B29*100,3) -> 0 | BV35: (0) [0,000] | BW35: (0) [0,000] | BX35: (0) [0,000] | BY35: (0) [0,000] | BZ35: (0) [0,000] | CA35: (0) [0,000] | CB35: (0) [0,000] | CC35: (0) [0,000] | CD35: (0) [0,000] | CE35: (0) [0,000] | CF35: (0) [0,000] | CG35: (0) [0,000] | CH35: (0) [0,000] | CI35: (0) [0,000] | CJ35: (0) [0,000] | CK35: (0) [0,000] | CL35: (0) [0,000] | CM35: (0) [0,000] | CN35: (0) [0,000] | CO35: (0) [0,000] | CP35: (0) [0,000] | CQ35: (0) [0,000] | CR35: (0) [0,000] | CS35: (0) [0,000] | CT35: (0) [0,000] | CU35: (0) [0,000] | CV35: (0) [0,000] | CW35: (0) [0,000] | CX35: (0) [0,000]
D36: гурппа4 | E36: 0 | F36: 0 | G36: 0 | H36: 0 | I36: 0 | J36: 0 | K36: 0 | L36: 0 | M36: 0 | N36: 0 | O36: 0 | P36: 0 | Q36: 0 | R36: 0 | S36: 0 | T36: 0 | U36: 0 | V36: 0 | W36: 0 | X36: 0 | Y36: 0 | Z36: 0 | AA36: 0 | AB36: 0 | AC36: 0 | AD36: 0 | AE36: 0 | AF36: 0 | AG36: 0 | AM36: 0 | AN36: гурппа4 | AO36: 0 | AP36: =ROUND(F36/$B29*100,3) -> 0 | AQ36: =ROUND(G36/$B29*100,3) -> 0 | AR36: =ROUND(H36/$B29*100,3) -> 0 | AS36: =ROUND(I36/$B29*100,3) -> 0 | AT36: =ROUND(J36/$B29*100,3) -> 0 | AU36: =ROUND(K36/$B29*100,3) -> 0 | AV36: =ROUND(L36/$B29*100,3) -> 0 | AW36: =ROUND(M36/$B29*100,3) -> 0 | AX36: =ROUND(N36/$B29*100,3) -> 0 | AY36: =ROUND(O36/$B29*100,3) -> 0 | AZ36: =ROUND(P36/$B29*100,3) -> 0 | BA36: =ROUND(Q36/$B29*100,3) -> 0 | BB36: =ROUND(R36/$B29*100,3) -> 0 | BC36: =ROUND(S36/$B29*100,3) -> 0 | BD36: =ROUND(T36/$B29*100,3) -> 0 | BE36: =ROUND(U36/$B29*100,3) -> 0 | BF36: =ROUND(V36/$B29*100,3) -> 0 | BG36: =ROUND(W36/$B29*100,3) -> 0 | BH36: =ROUND(X36/$B29*100,3) -> 0 | BI36: =ROUND(Y36/$B29*100,3) -> 0 | BJ36: =ROUND(Z36/$B29*100,3) -> 0 | BK36: =ROUND(AA36/$B29*100,3) -> 0 | BL36: =ROUND(AB36/$B29*100,3) -> 0 | BM36: =ROUND(AC36/$B29*100,3) -> 0 | BN36: =ROUND(AD36/$B29*100,3) -> 0 | BO36: =ROUND(AE36/$B29*100,3) -> 0 | BP36: =ROUND(AF36/$B29*100,3) -> 0 | BQ36: =ROUND(AG36/$B29*100,3) -> 0 | BV36: (0) [0,000] | BW36: (0) [0,000] | BX36: (0) [0,000] | BY36: (0) [0,000] | BZ36: (0) [0,000] | CA36: (0) [0,000] | CB36: (0) [0,000] | CC36: (0) [0,000] | CD36: (0) [0,000] | CE36: (0) [0,000] | CF36: (0) [0,000] | CG36: (0) [0,000] | CH36: (0) [0,000] | CI36: (0) [0,000] | CJ36: (0) [0,000] | CK36: (0) [0,000] | CL36: (0) [0,000] | CM36: (0) [0,000] | CN36: (0) [0,000] | CO36: (0) [0,000] | CP36: (0) [0,000] | CQ36: (0) [0,000] | CR36: (0) [0,000] | CS36: (0) [0,000] | CT36: (0) [0,000] | CU36: (0) [0,000] | CV36: (0) [0,000] | CW36: (0) [0,000] | CX36: (0) [0,000]
D37: гурппа5 | E37: 0 | F37: 0 | G37: 0 | H37: 0 | I37: 0 | J37: 0 | K37: 0 | L37: 0 | M37: 0 | N37: 0 | O37: 0 | P37: 0 | Q37: 0 | R37: 0 | S37: 0 | T37: 0 | U37: 0 | V37: 0 | W37: 0 | X37: 0 | Y37: 0 | Z37: 0 | AA37: 0 | AB37: 0 | AC37: 0 | AD37: 0 | AE37: 0 | AF37: 0 | AG37: 0 | AM37: 0 | AN37: гурппа5 | AO37: 0 | AP37: =ROUND(F37/$B29*100,3) -> 0 | AQ37: =ROUND(G37/$B29*100,3) -> 0 | AR37: =ROUND(H37/$B29*100,3) -> 0 | AS37: =ROUND(I37/$B29*100,3) -> 0 | AT37: =ROUND(J37/$B29*100,3) -> 0 | AU37: =ROUND(K37/$B29*100,3) -> 0 | AV37: =ROUND(L37/$B29*100,3) -> 0 | AW37: =ROUND(M37/$B29*100,3) -> 0 | AX37: =ROUND(N37/$B29*100,3) -> 0 | AY37: =ROUND(O37/$B29*100,3) -> 0 | AZ37: =ROUND(P37/$B29*100,3) -> 0 | BA37: =ROUND(Q37/$B29*100,3) -> 0 | BB37: =ROUND(R37/$B29*100,3) -> 0 | BC37: =ROUND(S37/$B29*100,3) -> 0 | BD37: =ROUND(T37/$B29*100,3) -> 0 | BE37: =ROUND(U37/$B29*100,3) -> 0 | BF37: =ROUND(V37/$B29*100,3) -> 0 | BG37: =ROUND(W37/$B29*100,3) -> 0 | BH37: =ROUND(X37/$B29*100,3) -> 0 | BI37: =ROUND(Y37/$B29*100,3) -> 0 | BJ37: =ROUND(Z37/$B29*100,3) -> 0 | BK37: =ROUND(AA37/$B29*100,3) -> 0 | BL37: =ROUND(AB37/$B29*100,3) -> 0 | BM37: =ROUND(AC37/$B29*100,3) -> 0 | BN37: =ROUND(AD37/$B29*100,3) -> 0 | BO37: =ROUND(AE37/$B29*100,3) -> 0 | BP37: =ROUND(AF37/$B29*100,3) -> 0 | BQ37: =ROUND(AG37/$B29*100,3) -> 0 | BV37: (0) [0,000] | BW37: (0) [0,000] | BX37: (0) [0,000] | BY37: (0) [0,000] | BZ37: (0) [0,000] | CA37: (0) [0,000] | CB37: (0) [0,000] | CC37: (0) [0,000] | CD37: (0) [0,000] | CE37: (0) [0,000] | CF37: (0) [0,000] | CG37: (0) [0,000] | CH37: (0) [0,000] | CI37: (0) [0,000] | CJ37: (0) [0,000] | CK37: (0) [0,000] | CL37: (0) [0,000] | CM37: (0) [0,000] | CN37: (0) [0,000] | CO37: (0) [0,000] | CP37: (0) [0,000] | CQ37: (0) [0,000] | CR37: (0) [0,000] | CS37: (0) [0,000] | CT37: (0) [0,000] | CU37: (0) [0,000] | CV37: (0) [0,000] | CW37: (0) [0,000] | CX37: (0) [0,000]
D38: гурппа6 | E38: 0 | F38: 0 | G38: 0 | H38: 0 | I38: 0 | J38: 0 | K38: 0 | L38: 0 | M38: 0 | N38: 0 | O38: 0 | P38: 0 | Q38: 0 | R38: 0 | S38: 0 | T38: 0 | U38: 0 | V38: 0 | W38: 0 | X38: 0 | Y38: 0 | Z38: 0 | AA38: 0 | AB38: 0 | AC38: 0 | AD38: 0 | AE38: 0 | AF38: 0 | AG38: 0 | AM38: 0 | AN38: гурппа6 | AO38: 0 | AP38: =ROUND(F38/$B29*100,3) -> 0 | AQ38: =ROUND(G38/$B29*100,3) -> 0 | AR38: =ROUND(H38/$B29*100,3) -> 0 | AS38: =ROUND(I38/$B29*100,3) -> 0 | AT38: =ROUND(J38/$B29*100,3) -> 0 | AU38: =ROUND(K38/$B29*100,3) -> 0 | AV38: =ROUND(L38/$B29*100,3) -> 0 | AW38: =ROUND(M38/$B29*100,3) -> 0 | AX38: =ROUND(N38/$B29*100,3) -> 0 | AY38: =ROUND(O38/$B29*100,3) -> 0 | AZ38: =ROUND(P38/$B29*100,3) -> 0 | BA38: =ROUND(Q38/$B29*100,3) -> 0 | BB38: =ROUND(R38/$B29*100,3) -> 0 | BC38: =ROUND(S38/$B29*100,3) -> 0 | BD38: =ROUND(T38/$B29*100,3) -> 0 | BE38: =ROUND(U38/$B29*100,3) -> 0 | BF38: =ROUND(V38/$B29*100,3) -> 0 | BG38: =ROUND(W38/$B29*100,3) -> 0 | BH38: =ROUND(X38/$B29*100,3) -> 0 | BI38: =ROUND(Y38/$B29*100,3) -> 0 | BJ38: =ROUND(Z38/$B29*100,3) -> 0 | BK38: =ROUND(AA38/$B29*100,3) -> 0 | BL38: =ROUND(AB38/$B29*100,3) -> 0 | BM38: =ROUND(AC38/$B29*100,3) -> 0 | BN38: =ROUND(AD38/$B29*100,3) -> 0 | BO38: =ROUND(AE38/$B29*100,3) -> 0 | BP38: =ROUND(AF38/$B29*100,3) -> 0 | BQ38: =ROUND(AG38/$B29*100,3) -> 0 | BV38: (0) [0,000] | BW38: (0) [0,000] | BX38: (0) [0,000] | BY38: (0) [0,000] | BZ38: (0) [0,000] | CA38: (0) [0,000] | CB38: (0) [0,000] | CC38: (0) [0,000] | CD38: (0) [0,000] | CE38: (0) [0,000] | CF38: (0) [0,000] | CG38: (0) [0,000] | CH38: (0) [0,000] | CI38: (0) [0,000] | CJ38: (0) [0,000] | CK38: (0) [0,000] | CL38: (0) [0,000] | CM38: (0) [0,000] | CN38: (0) [0,000] | CO38: (0) [0,000] | CP38: (0) [0,000] | CQ38: (0) [0,000] | CR38: (0) [0,000] | CS38: (0) [0,000] | CT38: (0) [0,000] | CU38: (0) [0,000] | CV38: (0) [0,000] | CW38: (0) [0,000] | CX38: (0) [0,000]
C39: =SUM(F39:AG40) -> 150 | D39: гурппа1 | E39: 150 | F39: 0 | G39: 0 | H39: 0 | I39: 150 | J39: 0 | K39: 0 | L39: 0 | M39: 0 | N39: 0 | O39: 0 | P39: 0 | Q39: 0 | R39: 0 | S39: 0 | T39: 0 | U39: 0 | V39: 0 | W39: 0 | X39: 0 | Y39: 0 | Z39: 0 | AA39: 0 | AB39: 0 | AC39: 0 | AD39: 0 | AE39: 0 | AF39: 0 | AG39: 0 | AI39: РОИВ | AJ39: =AK39-AL39 -> 0 | AK39: =ROUND(C39/$B29*100,3) -> 30.06 | AL39: =SUM(AO39:AO40) -> 30.06 | AM39: 1 | AN39: гурппа1 | AO39: 30.06 | AP39: =ROUND(F39/$B29*100,3) -> 0 | AQ39: =ROUND(G39/$B29*100,3) -> 0 | AR39: =ROUND(H39/$B29*100,3) -> 0 | AS39: =ROUND(I39/$B29*100,3) -> 30.06 | AT39: =ROUND(J39/$B29*100,3) -> 0 | AU39: =ROUND(K39/$B29*100,3) -> 0 | AV39: =ROUND(L39/$B29*100,3) -> 0 | AW39: =ROUND(M39/$B29*100,3) -> 0 | AX39: =ROUND(N39/$B29*100,3) -> 0 | AY39: =ROUND(O39/$B29*100,3) -> 0 | AZ39: =ROUND(P39/$B29*100,3) -> 0 | BA39: =ROUND(Q39/$B29*100,3) -> 0 | BB39: =ROUND(R39/$B29*100,3) -> 0 | BC39: =ROUND(S39/$B29*100,3) -> 0 | BD39: =ROUND(T39/$B29*100,3) -> 0 | BE39: =ROUND(U39/$B29*100,3) -> 0 | BF39: =ROUND(V39/$B29*100,3) -> 0 | BG39: =ROUND(W39/$B29*100,3) -> 0 | BH39: =ROUND(X39/$B29*100,3) -> 0 | BI39: =ROUND(Y39/$B29*100,3) -> 0 | BJ39: =ROUND(Z39/$B29*100,3) -> 0 | BK39: =ROUND(AA39/$B29*100,3) -> 0 | BL39: =ROUND(AB39/$B29*100,3) -> 0 | BM39: =ROUND(AC39/$B29*100,3) -> 0 | BN39: =ROUND(AD39/$B29*100,3) -> 0 | BO39: =ROUND(AE39/$B29*100,3) -> 0 | BP39: =ROUND(AF39/$B29*100,3) -> 0 | BQ39: =ROUND(AG39/$B29*100,3) -> 0 | BU39: ="("&SUM(E39:E40)&") ["&FIXED(SUM(AO39:AO40),3)&"]" -> (150) [30,060] | BV39: (150) [30,060] | BW39: (0) [0,000] | BX39: (0) [0,000] | BY39: (0) [0,000] | BZ39: (150) [30,060] | CA39: (0) [0,000] | CB39: (0) [0,000] | CC39: (0) [0,000] | CD39: (0) [0,000] | CE39: (0) [0,000] | CF39: (0) [0,000] | CG39: (0) [0,000] | CH39: (0) [0,000] | CI39: (0) [0,000] | CJ39: (0) [0,000] | CK39: (0) [0,000] | CL39: (0) [0,000] | CM39: (0) [0,000] | CN39: (0) [0,000] | CO39: (0) [0,000] | CP39: (0) [0,000] | CQ39: (0) [0,000] | CR39: (0) [0,000] | CS39: (0) [0,000] | CT39: (0) [0,000] | CU39: (0) [0,000] | CV39: (0) [0,000] | CW39: (0) [0,000] | CX39: (0) [0,000]
D40: гурппа2 | E40: 0 | F40: 0 | G40: 0 | H40: 0 | I40: 0 | J40: 0 | K40: 0 | L40: 0 | M40: 0 | N40: 0 | O40: 0 | P40: 0 | Q40: 0 | R40: 0 | S40: 0 | T40: 0 | U40: 0 | V40: 0 | W40: 0 | X40: 0 | Y40: 0 | Z40: 0 | AA40: 0 | AB40: 0 | AC40: 0 | AD40: 0 | AE40: 0 | AF40: 0 | AG40: 0 | AM40: 0 | AN40: гурппа2 | AO40: 0 | AP40: =ROUND(F40/$B29*100,3) -> 0 | AQ40: =ROUND(G40/$B29*100,3) -> 0 | AR40: =ROUND(H40/$B29*100,3) -> 0 | AS40: =ROUND(I40/$B29*100,3) -> 0 | AT40: =ROUND(J40/$B29*100,3) -> 0 | AU40: =ROUND(K40/$B29*100,3) -> 0 | AV40: =ROUND(L40/$B29*100,3) -> 0 | AW40: =ROUND(M40/$B29*100,3) -> 0 | AX40: =ROUND(N40/$B29*100,3) -> 0 | AY40: =ROUND(O40/$B29*100,3) -> 0 | AZ40: =ROUND(P40/$B29*100,3) -> 0 | BA40: =ROUND(Q40/$B29*100,3) -> 0 | BB40: =ROUND(R40/$B29*100,3) -> 0 | BC40: =ROUND(S40/$B29*100,3) -> 0 | BD40: =ROUND(T40/$B29*100,3) -> 0 | BE40: =ROUND(U40/$B29*100,3) -> 0 | BF40: =ROUND(V40/$B29*100,3) -> 0 | BG40: =ROUND(W40/$B29*100,3) -> 0 | BH40: =ROUND(X40/$B29*100,3) -> 0 | BI40: =ROUND(Y40/$B29*100,3) -> 0 | BJ40: =ROUND(Z40/$B29*100,3) -> 0 | BK40: =ROUND(AA40/$B29*100,3) -> 0 | BL40: =ROUND(AB40/$B29*100,3) -> 0 | BM40: =ROUND(AC40/$B29*100,3) -> 0 | BN40: =ROUND(AD40/$B29*100,3) -> 0 | BO40: =ROUND(AE40/$B29*100,3) -> 0 | BP40: =ROUND(AF40/$B29*100,3) -> 0 | BQ40: =ROUND(AG40/$B29*100,3) -> 0 | BV40: (0) [0,000] | BW40: (0) [0,000] | BX40: (0) [0,000] | BY40: (0) [0,000] | BZ40: (0) [0,000] | CA40: (0) [0,000] | CB40: (0) [0,000] | CC40: (0) [0,000] | CD40: (0) [0,000] | CE40: (0) [0,000] | CF40: (0) [0,000] | CG40: (0) [0,000] | CH40: (0) [0,000] | CI40: (0) [0,000] | CJ40: (0) [0,000] | CK40: (0) [0,000] | CL40: (0) [0,000] | CM40: (0) [0,000] | CN40: (0) [0,000] | CO40: (0) [0,000] | CP40: (0) [0,000] | CQ40: (0) [0,000] | CR40: (0) [0,000] | CS40: (0) [0,000] | CT40: (0) [0,000] | CU40: (0) [0,000] | CV40: (0) [0,000] | CW40: (0) [0,000] | CX40: (0) [0,000]
C41: =SUM(F41:AG42) -> 150 | D41: гурппа1 | E41: 150 | F41: 150 | G41: 0 | H41: 0 | I41: 0 | J41: 0 | K41: 0 | L41: 0 | M41: 0 | N41: 0 | O41: 0 | P41: 0 | Q41: 0 | R41: 0 | S41: 0 | T41: 0 | U41: 0 | V41: 0 | W41: 0 | X41: 0 | Y41: 0 | Z41: 0 | AA41: 0 | AB41: 0 | AC41: 0 | AD41: 0 | AE41: 0 | AF41: 0 | AG41: 0 | AI41: МСУ | AJ41: =AK41-AL41 -> 0 | AK41: =ROUND(C41/$B29*100,3) -> 30.06 | AL41: =SUM(AO41:AO42) -> 30.06 | AM41: 1 | AN41: гурппа1 | AO41: =SUM(AP41:BQ41) -> 30.06 | AP41: =ROUND(F41/$B29*100,3) -> 30.06 | AQ41: =ROUND(G41/$B29*100,3) -> 0 | AR41: =ROUND(H41/$B29*100,3) -> 0 | AS41: =ROUND(I41/$B29*100,3) -> 0 | AT41: =ROUND(J41/$B29*100,3) -> 0 | AU41: =ROUND(K41/$B29*100,3) -> 0 | AV41: =ROUND(L41/$B29*100,3) -> 0 | AW41: =ROUND(M41/$B29*100,3) -> 0 | AX41: =ROUND(N41/$B29*100,3) -> 0 | AY41: =ROUND(O41/$B29*100,3) -> 0 | AZ41: =ROUND(P41/$B29*100,3) -> 0 | BA41: =ROUND(Q41/$B29*100,3) -> 0 | BB41: =ROUND(R41/$B29*100,3) -> 0 | BC41: =ROUND(S41/$B29*100,3) -> 0 | BD41: =ROUND(T41/$B29*100,3) -> 0 | BE41: =ROUND(U41/$B29*100,3) -> 0 | BF41: =ROUND(V41/$B29*100,3) -> 0 | BG41: =ROUND(W41/$B29*100,3) -> 0 | BH41: =ROUND(X41/$B29*100,3) -> 0 | BI41: =ROUND(Y41/$B29*100,3) -> 0 | BJ41: =ROUND(Z41/$B29*100,3) -> 0 | BK41: =ROUND(AA41/$B29*100,3) -> 0 | BL41: =ROUND(AB41/$B29*100,3) -> 0 | BM41: =ROUND(AC41/$B29*100,3) -> 0 | BN41: =ROUND(AD41/$B29*100,3) -> 0 | BO41: =ROUND(AE41/$B29*100,3) -> 0 | BP41: =ROUND(AF41/$B29*100,3) -> 0 | BQ41: =ROUND(AG41/$B29*100,3) -> 0 | BU41: ="("&SUM(E41:E42)&") ["&FIXED(SUM(AO41:AO42),3)&"]" -> (150) [30,060] | BV41: (150) [30,060] | BW41: (150) [30,060] | BX41: (0) [0,000] | BY41: (0) [0,000] | BZ41: (0) [0,000] | CA41: (0) [0,000] | CB41: (0) [0,000] | CC41: (0) [0,000] | CD41: (0) [0,000] | CE41: (0) [0,000] | CF41: (0) [0,000] | CG41: (0) [0,000] | CH41: (0) [0,000] | CI41: (0) [0,000] | CJ41: (0) [0,000] | CK41: (0) [0,000] | CL41: (0) [0,000] | CM41: (0) [0,000] | CN41: (0) [0,000] | CO41: (0) [0,000] | CP41: (0) [0,000] | CQ41: (0) [0,000] | CR41: (0) [0,000] | CS41: (0) [0,000] | CT41: (0) [0,000] | CU41: (0) [0,000] | CV41: (0) [0,000] | CW41: (0) [0,000] | CX41: (0) [0,000]
D42: гурппа2 | E42: 0 | F42: 0 | G42: 0 | H42: 0 | I42: 0 | J42: 0 | K42: 0 | L42: 0 | M42: 0 | N42: 0 | O42: 0 | P42: 0 | Q42: 0 | R42: 0 | S42: 0 | T42: 0 | U42: 0 | V42: 0 | W42: 0 | X42: 0 | Y42: 0 | Z42: 0 | AA42: 0 | AB42: 0 | AC42: 0 | AD42: 0 | AE42: 0 | AF42: 0 | AG42: 0 | AM42: 0 | AN42: гурппа2 | AO42: =SUM(AP42:BQ42) -> 0 | AP42: =ROUND(F42/$B29*100,3) -> 0 | AQ42: =ROUND(G42/$B29*100,3) -> 0 | AR42: =ROUND(H42/$B29*100,3) -> 0 | AS42: =ROUND(I42/$B29*100,3) -> 0 | AT42: =ROUND(J42/$B29*100,3) -> 0 | AU42: =ROUND(K42/$B29*100,3) -> 0 | AV42: =ROUND(L42/$B29*100,3) -> 0 | AW42: =ROUND(M42/$B29*100,3) -> 0 | AX42: =ROUND(N42/$B29*100,3) -> 0 | AY42: =ROUND(O42/$B29*100,3) -> 0 | AZ42: =ROUND(P42/$B29*100,3) -> 0 | BA42: =ROUND(Q42/$B29*100,3) -> 0 | BB42: =ROUND(R42/$B29*100,3) -> 0 | BC42: =ROUND(S42/$B29*100,3) -> 0 | BD42: =ROUND(T42/$B29*100,3) -> 0 | BE42: =ROUND(U42/$B29*100,3) -> 0 | BF42: =ROUND(V42/$B29*100,3) -> 0 | BG42: =ROUND(W42/$B29*100,3) -> 0 | BH42: =ROUND(X42/$B29*100,3) -> 0 | BI42: =ROUND(Y42/$B29*100,3) -> 0 | BJ42: =ROUND(Z42/$B29*100,3) -> 0 | BK42: =ROUND(AA42/$B29*100,3) -> 0 | BL42: =ROUND(AB42/$B29*100,3) -> 0 | BM42: =ROUND(AC42/$B29*100,3) -> 0 | BN42: =ROUND(AD42/$B29*100,3) -> 0 | BO42: =ROUND(AE42/$B29*100,3) -> 0 | BP42: =ROUND(AF42/$B29*100,3) -> 0 | BQ42: =ROUND(AG42/$B29*100,3) -> 0 | BV42: (0) [0,000] | BW42: (0) [0,000] | BX42: (0) [0,000] | BY42: (0) [0,000] | BZ42: (0) [0,000] | CA42: (0) [0,000] | CB42: (0) [0,000] | CC42: (0) [0,000] | CD42: (0) [0,000] | CE42: (0) [0,000] | CF42: (0) [0,000] | CG42: (0) [0,000] | CH42: (0) [0,000] | CI42: (0) [0,000] | CJ42: (0) [0,000] | CK42: (0) [0,000] | CL42: (0) [0,000] | CM42: (0) [0,000] | CN42: (0) [0,000] | CO42: (0) [0,000] | CP42: (0) [0,000] | CQ42: (0) [0,000] | CR42: (0) [0,000] | CS42: (0) [0,000] | CT42: (0) [0,000] | CU42: (0) [0,000] | CV42: (0) [0,000] | CW42: (0) [0,000] | CX42: (0) [0,000]
AK43: =AK29+AK33+AK39+AK41 -> 100
C47: Пример как должно выглядеть | E47: Столбец АI | F47: столбец AN | G47: ячейки с BV по СХ
E48: =AI29 -> РФ | F48: =AN29 -> гурппа1 | G48: =BV29 -> (100) [20,040] | H48: =BW29 -> (0) [0,000] | I48: (100) [20,040] | J48: (0) [0,000] | K48: (0) [0,000] | L48: (0) [0,000] | M48: (0) [0,000] | N48: (0) [0,000] | O48: (0) [0,000] | P48: (0) [0,000] | Q48: (0) [0,000] | R48: (0) [0,000] | S48: (0) [0,000] | T48: (0) [0,000] | U48: (0) [0,000] | V48: (0) [0,000] | W48: (0) [0,000] | X48: (0) [0,000] | Y48: (0) [0,000] | Z48: (0) [0,000] | AA48: (0) [0,000] | AB48: (0) [0,000] | AC48: (0) [0,000] | AD48: (0) [0,000] | AE48: (0) [0,000] | AF48: (0) [0,000] | AG48: (0) [0,000] | AH48: (0) [0,000] | AI48: (0) [0,000]
F49: =AN31 -> гурппа3 | G49: =BV31 -> (99) [19,839] | H49: =BW31 -> (0) [0,000] | I49: =BX31 -> (0) [0,000] | J49: =BY31 -> (0) [0,000] | K49: =BZ31 -> (0) [0,000] | L49: =CA31 -> (1) [0,200] | M49: =CB31 -> (0) [0,000] | N49: =CC31 -> (60) [12,024] | O49: =CD31 -> (0) [0,000] | P49: =CE31 -> (0) [0,000] | Q49: =CF31 -> (36) [7,214] | R49: =CG31 -> (0) [0,000] | S49: =CH31 -> (2) [0,401] | T49: =CI31 -> (0) [0,000] | U49: =CJ31 -> (0) [0,000] | V49: =CK31 -> (0) [0,000] | W49: =CL31 -> (0) [0,000] | X49: =CM31 -> (0) [0,000] | Y49: =CN31 -> (0) [0,000] | Z49: =CO31 -> (0) [0,000] | AA49: =CP31 -> (0) [0,000] | AB49: =CQ31 -> (0) [0,000] | AC49: =CR31 -> (0) [0,000] | AD49: =CS31 -> (0) [0,000] | AE49: =CT31 -> (0) [0,000] | AF49: =CU31 -> (0) [0,000] | AG49: =CV31 -> (0) [0,000] | AH49: =CW31 -> (0) [0,000] | AI49: =CX31 -> (0) [0,000]
E50: =AI39 -> РОИВ | F50: =AN39 -> гурппа1 | G50: =BV39 -> (150) [30,060] | H50: =BW39 -> (0) [0,000] | I50: (0) [0,000] | J50: (0) [0,000] | K50: (150) [30,060] | L50: (0) [0,000] | M50: (0) [0,000] | N50: (0) [0,000] | O50: (0) [0,000] | P50: (0) [0,000] | Q50: (0) [0,000] | R50: (0) [0,000] | S50: (0) [0,000] | T50: (0) [0,000] | U50: (0) [0,000] | V50: (0) [0,000] | W50: (0) [0,000] | X50: (0) [0,000] | Y50: (0) [0,000] | Z50: (0) [0,000] | AA50: (0) [0,000] | AB50: (0) [0,000] | AC50: (0) [0,000] | AD50: (0) [0,000] | AE50: (0) [0,000] | AF50: (0) [0,000] | AG50: (0) [0,000] | AH50: (0) [0,000] | AI50: (0) [0,000]
E51: =AI41 -> МСУ | F51: =AN41 -> гурппа1 | G51: =BV41 -> (150) [30,060] | H51: =BW41 -> (150) [30,060] | I51: (0) [0,000] | J51: (0) [0,000] | K51: (0) [0,000] | L51: (0) [0,000] | M51: (0) [0,000] | N51: (0) [0,000] | O51: (0) [0,000] | P51: (0) [0,000] | Q51: (0) [0,000] | R51: (0) [0,000] | S51: (0) [0,000] | T51: (0) [0,000] | U51: (0) [0,000] | V51: (0) [0,000] | W51: (0) [0,000] | X51: (0) [0,000] | Y51: (0) [0,000] | Z51: (0) [0,000] | AA51: (0) [0,000] | AB51: (0) [0,000] | AC51: (0) [0,000] | AD51: (0) [0,000] | AE51: (0) [0,000] | AF51: (0) [0,000] | AG51: (0) [0,000] | AH51: (0) [0,000] | AI51: (0) [0,000]
